Body,Body Name,Date,TransNo,Amount � (Excl VAT),Supplier name,Description,Expense Area,Expense Type,Expense Code,
http://opendatacommunities.org/id/london-borough-council/sutton,London Borough of Sutton,17/12/2018,1266540,81.83 , SAINSBURYS TO YOU 0052,SAINSBURYS GROCERIES,Peoples Services Directorate,Provisions - General,F150,
http://opendatacommunities.org/id/london-borough-council/sutton,London Borough of Sutton,03/12/2018,1266540,108.79 , SAINSBURYS TO YOU 0052,SAINSBURYS SHOP,Peoples Services Directorate,Refreshments,F155,
http://opendatacommunities.org/id/london-borough-council/sutton,London Borough of Sutton,17/12/2018,1266540,119.99 , CURRYS SUPERSTORE,FRIDGE - CURRYS,Peoples Services Directorate,Other Services,F340,
http://opendatacommunities.org/id/london-borough-council/sutton,London Borough of Sutton,27/11/2018,1266540,90.00 , HILTON,ACCOMODATION,Peoples Services Directorate,Hotel Accomodation,A512,
http://opendatacommunities.org/id/london-borough-council/sutton,London Borough of Sutton,26/11/2018,1266540,82.50 , WWW.THEBEAUTYACADEMY.O,99.00 - A520 0304 9999 - COURSE FOR YOUNG PERSON CB.PNG,Peoples Services Directorate,Training - Course Fees,A520,
http://opendatacommunities.org/id/london-borough-council/sutton,London Borough of Sutton,28/11/2018,1266540,124.99 , ARGOS RETAIL GROUP,JM SETTING UP,Peoples Services Directorate,Domestic Supplies,D801,
http://opendatacommunities.org/id/london-borough-council/sutton,London Borough of Sutton,01/12/2018,1266540,26.50 , ASDA SUPERSTORE,YP XMAS QUAD,Peoples Services Directorate,Personal Requisites,F106,
http://opendatacommunities.org/id/london-borough-council/sutton,London Borough of Sutton,29/11/2018,1266540,77.30 , PRIMARK,YP XMAS PRESENTS,Peoples Services Directorate,Personal Requisites,F106,
http://opendatacommunities.org/id/london-borough-council/sutton,London Borough of Sutton,26/11/2018,1266540,6.33 , WOODCOTE GREEN,LC MOVING IN PRESENT,Peoples Services Directorate,Personal Requisites,F106,
http://opendatacommunities.org/id/london-borough-council/sutton,London Borough of Sutton,17/12/2018,1266540,4.80 , IZ  GINGER FROG CA,JC ACTIVITY WITH IDVA,Peoples Services Directorate,Personal Requisites,F106,
http://opendatacommunities.org/id/london-borough-council/sutton,London Borough of Sutton,14/12/2018,1266540,12.00 , WILKO RETAIL LIMIT,YP XMAS PRESENTS,Peoples Services Directorate,Personal Requisites,F106,
http://opendatacommunities.org/id/london-borough-council/sutton,London Borough of Sutton,14/12/2018,1266540,5.30 , BOOTS 0858,YP XMAS PRESENT,Peoples Services Directorate,Personal Requisites,F106,
http://opendatacommunities.org/id/london-borough-council/sutton,London Borough of Sutton,14/12/2018,1266540,20.00 , HILLS FOOD & WINE-1816,JC PHONE TOP UP,Peoples Services Directorate,Personal Requisites,F106,
http://opendatacommunities.org/id/london-borough-council/sutton,London Borough of Sutton,18/12/2018,1266540,30.00 , PRIMARK,JC ESSENTIALS,Peoples Services Directorate,Personal Requisites,F106,
http://opendatacommunities.org/id/london-borough-council/sutton,London Borough of Sutton,18/12/2018,1266540,7.47 , LIDL UK  LONDON,YP XMAS,Peoples Services Directorate,Personal Requisites,F106,
http://opendatacommunities.org/id/london-borough-council/sutton,London Borough of Sutton,14/12/2018,1266540,33.80 , PRIMARK,YP XMAS PRESENTS,Peoples Services Directorate,Personal Requisites,F106,
http://opendatacommunities.org/id/london-borough-council/sutton,London Borough of Sutton,12/12/2018,1266540,11.00 , IKEA LIMITED,FCF ACTIVITY,Peoples Services Directorate,Personal Requisites,F106,
http://opendatacommunities.org/id/london-borough-council/sutton,London Borough of Sutton,10/12/2018,1266540,41.30 , PRIMARK,YP XMAS PRESENTS,Peoples Services Directorate,Personal Requisites,F106,
http://opendatacommunities.org/id/london-borough-council/sutton,London Borough of Sutton,11/12/2018,1266540,12.00 , SAINSBURYS 2006,IF MOVING IN PRESENT,Peoples Services Directorate,Personal Requisites,F106,
http://opendatacommunities.org/id/london-borough-council/sutton,London Borough of Sutton,11/12/2018,1266540,4.97 , MCDONALDS,JC ACTIVITY,Peoples Services Directorate,Personal Requisites,F106,
http://opendatacommunities.org/id/london-borough-council/sutton,London Borough of Sutton,10/12/2018,1266540,111.09 , LBSUTTON,FCF 1ST WK RENT,Peoples Services Directorate,Personal Requisites,F106,
http://opendatacommunities.org/id/london-borough-council/sutton,London Borough of Sutton,10/12/2018,1266540,30.05 , BOOTS 0858,YP XMAS PRESENTS,Peoples Services Directorate,Personal Requisites,F106,
http://opendatacommunities.org/id/london-borough-council/sutton,London Borough of Sutton,13/12/2018,1266540,30.00 , ASDA SUPERSTORE,YP XMAS PRESENTS,Peoples Services Directorate,Personal Requisites,F106,
http://opendatacommunities.org/id/london-borough-council/sutton,London Borough of Sutton,06/12/2018,1266540,44.16 , WOODCOTE GREEN,YP XMAS PRESENTS,Peoples Services Directorate,Personal Requisites,F106,
http://opendatacommunities.org/id/london-borough-council/sutton,London Borough of Sutton,26/11/2018,1266540,8.33 , LBSUTTON,10.00 - F106 0304 9999 - BIRTH CERT SUTTON.PNG,Peoples Services Directorate,Personal Requisites,F106,
http://opendatacommunities.org/id/london-borough-council/sutton,London Borough of Sutton,27/11/2018,1266540,158.33 , WM MORRISONS STORE,190.00 - H301 0304 9999 - MORRISONS VOUCHERS.PNG,Peoples Services Directorate,Client Care/Assistance,H301,
http://opendatacommunities.org/id/london-borough-council/sutton,London Borough of Sutton,18/12/2018,1266540,500.00 , WM MORRISONS STORE,MORRISONS VOUCHER FOR LEAVING CARE TEAM,Peoples Services Directorate,Client Care/Assistance,H301,
http://opendatacommunities.org/id/london-borough-council/sutton,London Borough of Sutton,14/12/2018,1266540,222.47 , ARGOS LTD,FCF SETTING UP,Peoples Services Directorate,Set Up Costs - Children Leaving Care,H336,
http://opendatacommunities.org/id/london-borough-council/sutton,London Borough of Sutton,21/12/2018,1266540,170.00 , BRITISH HEART FOUNDATI,FCF SETTING UP,Peoples Services Directorate,Set Up Costs - Children Leaving Care,H336,
http://opendatacommunities.org/id/london-borough-council/sutton,London Borough of Sutton,05/12/2018,1266540,36.00 , DUNELM LTD,FCF SET UP,Peoples Services Directorate,Set Up Costs - Children Leaving Care,H336,
http://opendatacommunities.org/id/london-borough-council/sutton,London Borough of Sutton,03/12/2018,1266540,7.50 , TESCO STORES 3235,MA SET UP,Peoples Services Directorate,Set Up Costs - Children Leaving Care,H336,
http://opendatacommunities.org/id/london-borough-council/sutton,London Borough of Sutton,12/12/2018,1266540,556.00 , IKEA LIMITED,FCF SETTING UP,Peoples Services Directorate,Set Up Costs - Children Leaving Care,H336,
http://opendatacommunities.org/id/london-borough-council/sutton,London Borough of Sutton,06/12/2018,1266540,(35.10), DUNELM LTD,FCF REFUND WRONG ITEM,Peoples Services Directorate,Set Up Costs - Children Leaving Care,H336,
http://opendatacommunities.org/id/london-borough-council/sutton,London Borough of Sutton,06/12/2018,1266540,51.99 , ARGOS LTD,MA SETTING UP,Peoples Services Directorate,Set Up Costs - Children Leaving Care,H336,
http://opendatacommunities.org/id/london-borough-council/sutton,London Borough of Sutton,11/12/2018,1266540,59.57 , DUNELM LTD,FCF SET UP,Peoples Services Directorate,Set Up Costs - Children Leaving Care,H336,
http://opendatacommunities.org/id/london-borough-council/sutton,London Borough of Sutton,14/12/2018,1266540,100.00 , H S PRINTING AND COMPU,JC SET UP,Peoples Services Directorate,Set Up Costs - Children Leaving Care,H336,
http://opendatacommunities.org/id/london-borough-council/sutton,London Borough of Sutton,18/12/2018,1266540,17.50 , IKEA LIMITED,FCF SETTING UP,Peoples Services Directorate,Set Up Costs - Children Leaving Care,H336,
http://opendatacommunities.org/id/london-borough-council/sutton,London Borough of Sutton,29/11/2018,1266540,40.83 , BRITISH HEART FOUNDATI,LC SETTING UP,Peoples Services Directorate,Set Up Costs - Children Leaving Care,H336,
http://opendatacommunities.org/id/london-borough-council/sutton,London Borough of Sutton,26/11/2018,1266540,635.00 , SUTTON APPLIANCES,762.00 - H336 0304 9999 - EURONICS - WHITE GOODS FOR LCT CLIENT.JPG,Peoples Services Directorate,Set Up Costs - Children Leaving Care,H336,
http://opendatacommunities.org/id/london-borough-council/sutton,London Borough of Sutton,13/12/2018,1266540,512.92 , WWW.ARGOS.CO.UK,ARGOS ORDER FOR CLIENT IN LCT,Peoples Services Directorate,Set Up Costs - Children Leaving Care,H336,
http://opendatacommunities.org/id/london-borough-council/sutton,London Borough of Sutton,07/12/2018,1266540,769.97 , SUTTON APPLIANCES,APPLIANCES - ASC CLIENT,Peoples Services Directorate,Set Up Costs - Children Leaving Care,H336,
http://opendatacommunities.org/id/london-borough-council/sutton,London Borough of Sutton,11/12/2018,1266540,120.00 , EB  YOUNG WOMEN AND CO,120.00 - A520 03050 9999 - TRAINING,Peoples Services Directorate,Training - Course Fees,A520,
http://opendatacommunities.org/id/london-borough-council/sutton,London Borough of Sutton,20/12/2018,1266540,219.00 , HOMEAWAY HA16XPXK,219.20 - H202 0305 9999 - HOME AND AWAY HOMES.PNG,Peoples Services Directorate,Accommodation - Bed and Breakfast,H202,
http://opendatacommunities.org/id/london-borough-council/sutton,London Borough of Sutton,06/12/2018,1266540,65.00 , HMCOURTS-SERVICE.G,65.00 - H301 0305 9999 - COURT FINE FOR YOUNG PERSON.PNG,Peoples Services Directorate,Client Care/Assistance,H301,
http://opendatacommunities.org/id/london-borough-council/sutton,London Borough of Sutton,03/12/2018,1266540,"1,448.00 ", TRAVELODGE,1448.00 - H202 0310 9999 - TRAVELODGE WIMBLEDON MORDEN.PNG,Peoples Services Directorate,Accommodation - Bed and Breakfast,H202,
http://opendatacommunities.org/id/london-borough-council/sutton,London Borough of Sutton,17/12/2018,1266540,603.33 , TRAVELODGE,EMERGENCY ACCOMMODATION,Peoples Services Directorate,Accommodation - Bed and Breakfast,H202,
http://opendatacommunities.org/id/london-borough-council/sutton,London Borough of Sutton,17/12/2018,1266540,410.83 , TRAVELODGE,EMERGENCY ACCOMMODATION,Peoples Services Directorate,Accommodation - Bed and Breakfast,H202,
http://opendatacommunities.org/id/london-borough-council/sutton,London Borough of Sutton,28/11/2018,1266540,16.50 , WWW.WIGHTLINK.CO.UK,19.80 - A530 0311 9999 - WIGTLINK - STAFF TRAVEL FOR SOCIAL WORKER .PNG,Peoples Services Directorate,Travelling and Subsistence Allowances,A530,
http://opendatacommunities.org/id/london-borough-council/sutton,London Borough of Sutton,20/12/2018,1266540,20.00 , OYSTER AUTO-TOP UP,OYSTER TP UP,Peoples Services Directorate,Travelling and Subsistence Allowances,A530,
http://opendatacommunities.org/id/london-borough-council/sutton,London Borough of Sutton,19/12/2018,1266540,20.00 , OYSTER AUTO-TOP UP,OYSTER TP UP,Peoples Services Directorate,Travelling and Subsistence Allowances,A530,
http://opendatacommunities.org/id/london-borough-council/sutton,London Borough of Sutton,21/12/2018,1266540,20.00 , OYSTER AUTO-TOP UP,OYSTER ON LINE,Peoples Services Directorate,Travelling and Subsistence Allowances,A530,
http://opendatacommunities.org/id/london-borough-council/sutton,London Borough of Sutton,14/12/2018,1266540,20.00 , OYSTER AUTO-TOP UP,OYSTER TOP UP,Peoples Services Directorate,Travelling and Subsistence Allowances,A530,
http://opendatacommunities.org/id/london-borough-council/sutton,London Borough of Sutton,15/12/2018,1266540,20.00 , OYSTER AUTO-TOP UP,OYSTER TOP UP,Peoples Services Directorate,Travelling and Subsistence Allowances,A530,
http://opendatacommunities.org/id/london-borough-council/sutton,London Borough of Sutton,15/12/2018,1266540,20.00 , OYSTER AUTO-TOP UP,OYSTER TOP UP,Peoples Services Directorate,Travelling and Subsistence Allowances,A530,
http://opendatacommunities.org/id/london-borough-council/sutton,London Borough of Sutton,14/12/2018,1266540,67.50 , ENTERPRISE RENT-A-CAR,ENTERPRISE RENTAL AGREEMENT 4BXZTB.PDF,Peoples Services Directorate,Travelling and Subsistence Allowances,A530,
http://opendatacommunities.org/id/london-borough-council/sutton,London Borough of Sutton,16/12/2018,1266540,20.00 , OYSTER AUTO-TOP UP,20.00 AUTO TOP UP OYSTER.PDF,Peoples Services Directorate,Travelling and Subsistence Allowances,A530,
http://opendatacommunities.org/id/london-borough-council/sutton,London Borough of Sutton,16/12/2018,1266540,20.00 , OYSTER AUTO-TOP UP,20.00 AUTO TOP UP OYSTER.PDF,Peoples Services Directorate,Travelling and Subsistence Allowances,A530,
http://opendatacommunities.org/id/london-borough-council/sutton,London Borough of Sutton,10/12/2018,1266540,24.70 , PAYPAL  DOVER ROYAL,24.70 - A530 0311 9999 - DOVER ROYAL TAXIS -.PNG,Peoples Services Directorate,Travelling and Subsistence Allowances,A530,
http://opendatacommunities.org/id/london-borough-council/sutton,London Borough of Sutton,10/12/2018,1266540,15.00 , OYSTER ONLINE,OYSTER ON LINE,Peoples Services Directorate,Travelling and Subsistence Allowances,A530,
http://opendatacommunities.org/id/london-borough-council/sutton,London Borough of Sutton,10/12/2018,1266540,15.00 , OYSTER ONLINE,OYSTER ON LINE,Peoples Services Directorate,Travelling and Subsistence Allowances,A530,
http://opendatacommunities.org/id/london-borough-council/sutton,London Borough of Sutton,10/12/2018,1266540,15.00 , OYSTER ONLINE,OYSTER ON  LINE,Peoples Services Directorate,Travelling and Subsistence Allowances,A530,
http://opendatacommunities.org/id/london-borough-council/sutton,London Borough of Sutton,10/12/2018,1266540,15.00 , OYSTER ONLINE,OYSTER ON  LINE,Peoples Services Directorate,Travelling and Subsistence Allowances,A530,
http://opendatacommunities.org/id/london-borough-council/sutton,London Borough of Sutton,13/12/2018,1266540,20.00 , OYSTER AUTO-TOP UP,OYSTER ON LINE,Peoples Services Directorate,Travelling and Subsistence Allowances,A530,
http://opendatacommunities.org/id/london-borough-council/sutton,London Borough of Sutton,12/12/2018,1266540,20.00 , OYSTER AUTO-TOP UP,OYSTER ON LINE,Peoples Services Directorate,Travelling and Subsistence Allowances,A530,
http://opendatacommunities.org/id/london-borough-council/sutton,London Borough of Sutton,12/12/2018,1266540,20.00 , OYSTER AUTO-TOP UP,OYSTER ON  LINE,Peoples Services Directorate,Travelling and Subsistence Allowances,A530,
http://opendatacommunities.org/id/london-borough-council/sutton,London Borough of Sutton,21/12/2018,1266540,20.00 , OYSTER AUTO-TOP UP,20.00 - A530 0311 9999 - (1)OYSTER CARD - 071129341994 .PD,Peoples Services Directorate,Travelling and Subsistence Allowances,A530,
http://opendatacommunities.org/id/london-borough-council/sutton,London Borough of Sutton,04/12/2018,1266540,15.00 , OYSTER ONLINE,OYSTER,Peoples Services Directorate,Travelling and Subsistence Allowances,A530,
http://opendatacommunities.org/id/london-borough-council/sutton,London Borough of Sutton,02/12/2018,1266540,20.00 , OYSTER AUTO-TOP UP,20.00 - AUTO TOP UP.PDF,Peoples Services Directorate,Travelling and Subsistence Allowances,A530,
http://opendatacommunities.org/id/london-borough-council/sutton,London Borough of Sutton,04/12/2018,1266540,15.00 , OYSTER ONLINE,OYSTER,Peoples Services Directorate,Travelling and Subsistence Allowances,A530,
http://opendatacommunities.org/id/london-borough-council/sutton,London Borough of Sutton,04/12/2018,1266540,15.00 , OYSTER ONLINE,OYSTER,Peoples Services Directorate,Travelling and Subsistence Allowances,A530,
http://opendatacommunities.org/id/london-borough-council/sutton,London Borough of Sutton,04/12/2018,1266540,15.00 , OYSTER ONLINE,OYSTER,Peoples Services Directorate,Travelling and Subsistence Allowances,A530,
http://opendatacommunities.org/id/london-borough-council/sutton,London Borough of Sutton,04/12/2018,1266540,15.00 , OYSTER ONLINE,OYSTER,Peoples Services Directorate,Travelling and Subsistence Allowances,A530,
http://opendatacommunities.org/id/london-borough-council/sutton,London Borough of Sutton,08/12/2018,1266540,20.00 , OYSTER AUTO-TOP UP,OYSTER ON LINE,Peoples Services Directorate,Recruitment Expenses,A531,
http://opendatacommunities.org/id/london-borough-council/sutton,London Borough of Sutton,19/11/2018,1266540,(9.25), GRO HM PASSPORT OFFICE,REFUND-AWAITING CORRECT REFUND RECEIPT FROM GRO PASSPORT OFFICE,Peoples Services Directorate,Personal Requisites,F106,
http://opendatacommunities.org/id/london-borough-council/sutton,London Borough of Sutton,21/12/2018,1266540,59.96 , WWW.BOOK.SNOZONEUK,59.96 F106 CC 0311 9999 SNOZONE FOR CONTACT .PDF,Peoples Services Directorate,Personal Requisites,F106,
http://opendatacommunities.org/id/london-borough-council/sutton,London Borough of Sutton,19/12/2018,1266540,127.00 , HM PASSPORT,PASSPORT FAST TRACK FOR LAC CHILD,Peoples Services Directorate,Personal Requisites,F106,
http://opendatacommunities.org/id/london-borough-council/sutton,London Borough of Sutton,18/12/2018,1266540,127.00 , HM PASSPORT,PASSPORT FAST TRACK FOR LAC CHILD,Peoples Services Directorate,Personal Requisites,F106,
http://opendatacommunities.org/id/london-borough-council/sutton,London Borough of Sutton,14/12/2018,1266540,36.00 , ICE SKATE BIRMINGHAM,36.00 - ICE SKATE BIRMINGHAM - F106 0311 9999 -.PN,Peoples Services Directorate,Provisions - General,F150,
http://opendatacommunities.org/id/london-borough-council/sutton,London Borough of Sutton,16/12/2018,1266540,21.99 , AMAZON.CO.UK M21604JN4,BOOKS ON AMAZON FOR LAC,Peoples Services Directorate,Provisions - General,F150,
http://opendatacommunities.org/id/london-borough-council/sutton,London Borough of Sutton,19/12/2018,1266540,13.00 , WM MORRISONS STORE,PURCHASE OF LAC CHRISTMAS PRESENTS GIFT F150  0311 9999,Peoples Services Directorate,Provisions - General,F150,
http://opendatacommunities.org/id/london-borough-council/sutton,London Borough of Sutton,16/12/2018,1266540,224.00 , GREYHOUND,CONTACT -WAITING ON CORRECT RECEIPT FROM THE HOTEL,Peoples Services Directorate,Accommodation - Supported Living,H201,
http://opendatacommunities.org/id/london-borough-council/sutton,London Borough of Sutton,05/12/2018,1266540,(10.00), PREMIER INN,AWAITING CORRECT REFUND RECEIPT FROM HOTEL,Peoples Services Directorate,Accommodation - Supported Living,H201,
http://opendatacommunities.org/id/london-borough-council/sutton,London Borough of Sutton,14/12/2018,1266540,63.00 , TRAVELODGE,63.00 - H202 0311 9999 - TRAVELODGE SHEFFIELD.PNG,Peoples Services Directorate,Accommodation - Bed and Breakfast,H202,
http://opendatacommunities.org/id/london-borough-council/sutton,London Borough of Sutton,05/12/2018,1266540,162.40 , GREYHOUND,HOTEL BOOKING H202 0311 9999 162.40,Peoples Services Directorate,Accommodation - Bed and Breakfast,H202,
http://opendatacommunities.org/id/london-borough-council/sutton,London Borough of Sutton,28/11/2018,1266540,33.00 , WWW.WIGHTLINK.CO.UK,39.60 - H212 0311 9999 - WIGTLINK FERRY FOR LAC CONTACT .PNG,Peoples Services Directorate,C.C.A Travel & Subsistance,H212,
http://opendatacommunities.org/id/london-borough-council/sutton,London Borough of Sutton,18/12/2018,1266540,200.00 , WM MORRISONS STORE,MORRISONS VOUCHERS FOR CHILDREN'S SERVICE,Peoples Services Directorate,Client Care/Assistance,H301,
http://opendatacommunities.org/id/london-borough-council/sutton,London Borough of Sutton,26/11/2018,1266540,50.00 , WM MORRISONS STORE,FOOD VOUCHERS,Peoples Services Directorate,Client Care/Assistance,H301,
http://opendatacommunities.org/id/london-borough-council/sutton,London Borough of Sutton,27/11/2018,1266540,104.17 , WWW.IKEA.COM,125.00 - H301 0311 9999 - IKEA - ITEM FOR CLIENT REQUESTED BY LAC TEAM.PNG,Peoples Services Directorate,Client Care/Assistance,H301,
http://opendatacommunities.org/id/london-borough-council/sutton,London Borough of Sutton,20/12/2018,1266540,48.60 , NATIONAL EXPRESS LIMIT,48.60 - A530 0312 9999 - NATIONAL EXPRESS.PNG,Peoples Services Directorate,Travelling and Subsistence Allowances,A530,
http://opendatacommunities.org/id/london-borough-council/sutton,London Borough of Sutton,20/12/2018,1266540,46.90 , NATIONAL EXPRESS LIMIT,46.90 - A530 0312 9999 - NATIONAL COACH.PNG,Peoples Services Directorate,Travelling and Subsistence Allowances,A530,
http://opendatacommunities.org/id/london-borough-council/sutton,London Borough of Sutton,13/12/2018,1266540,53.00 , NATIONAL EXPRESS LIMIT,53.00 - A530 0312 9999 - NATIONAL COACH.PNG,Peoples Services Directorate,Travelling and Subsistence Allowances,A530,
http://opendatacommunities.org/id/london-borough-council/sutton,London Borough of Sutton,06/12/2018,1266540,57.00 , NATIONAL EXPRESS LIMIT,57.00 - A530 0312 9999 - NATIONAL COACH.PNG,Peoples Services Directorate,Travelling and Subsistence Allowances,A530,
http://opendatacommunities.org/id/london-borough-council/sutton,London Borough of Sutton,06/12/2018,1266540,53.00 , NATIONAL EXPRESS LIMIT,53.00 - A530 0312 9999 - NATIONAL COACH.PNG,Peoples Services Directorate,Travelling and Subsistence Allowances,A530,
http://opendatacommunities.org/id/london-borough-council/sutton,London Borough of Sutton,30/11/2018,1266540,20.00 , OYSTER AUTO-TOP UP,20.00 AUTO TOP UP - A530 0312 9999 - OYSTER.PDF,Peoples Services Directorate,Travelling and Subsistence Allowances,A530,
http://opendatacommunities.org/id/london-borough-council/sutton,London Borough of Sutton,30/11/2018,1266540,20.00 , OYSTER AUTO-TOP UP,20.00 AUTO TOP UP - A530 0312 9999 - OYSTER.PDF,Peoples Services Directorate,Travelling and Subsistence Allowances,A530,
http://opendatacommunities.org/id/london-borough-council/sutton,London Borough of Sutton,30/11/2018,1266540,20.00 , OYSTER AUTO-TOP UP,20.00 AUTO TOP UP - A530 0312 9999 - OYSTER.PDF,Peoples Services Directorate,Travelling and Subsistence Allowances,A530,
http://opendatacommunities.org/id/london-borough-council/sutton,London Borough of Sutton,29/11/2018,1266540,20.00 , OYSTER AUTO-TOP UP,20.00 AUTO TOP UP - A530 0312 9999 - OYSTER.PDF,Peoples Services Directorate,Travelling and Subsistence Allowances,A530,
http://opendatacommunities.org/id/london-borough-council/sutton,London Borough of Sutton,29/11/2018,1266540,20.00 , OYSTER AUTO-TOP UP,20.00 AUTO TOP UP - A530 0312 9999 - OYSTER.PDF,Peoples Services Directorate,Travelling and Subsistence Allowances,A530,
http://opendatacommunities.org/id/london-borough-council/sutton,London Borough of Sutton,04/12/2018,1266540,15.00 , OYSTER ONLINE,OYSTER,Peoples Services Directorate,Travelling and Subsistence Allowances,A530,
http://opendatacommunities.org/id/london-borough-council/sutton,London Borough of Sutton,28/11/2018,1266540,(35.00), WESTMINSTER CITY COUNC,35.00 - F106 0312 9999 - WESTMINSTER REGUSTER OFFICE -.PNG,Peoples Services Directorate,Personal Requisites,F106,
http://opendatacommunities.org/id/london-borough-council/sutton,London Borough of Sutton,30/11/2018,1266540,20.00 , LBSUTTON,20.00 - F106 0312 9999 - SUTTON REGISTER OFFICE.PNG,Peoples Services Directorate,Personal Requisites,F106,
http://opendatacommunities.org/id/london-borough-council/sutton,London Borough of Sutton,20/11/2018,1266540,(9.25), GRO HM PASSPORT OFFICE,REFUND 9.25 - F106 0312 9999 - BIRTH CERT FOR COURT TEAM.PNG,Peoples Services Directorate,Personal Requisites,F106,
http://opendatacommunities.org/id/london-borough-council/sutton,London Borough of Sutton,11/12/2018,1266540,57.00 , NATIONAL EXPRESS LIMIT,57.00 H212 0312 9999 NATIONAL EXPRESS,Peoples Services Directorate,C.C.A Travel & Subsistance,H212,
http://opendatacommunities.org/id/london-borough-council/sutton,London Borough of Sutton,25/12/2018,1266540,46.90 , NATIONAL EXPRESS LIMIT,TRAVEL FOR CONTACT,Peoples Services Directorate,C.C.A Travel & Subsistance,H212,
http://opendatacommunities.org/id/london-borough-council/sutton,London Borough of Sutton,25/12/2018,1266540,57.00 , NATIONAL EXPRESS LIMIT,TRAVEL FOR CONTACT,Peoples Services Directorate,C.C.A Travel & Subsistance,H212,
http://opendatacommunities.org/id/london-borough-council/sutton,London Borough of Sutton,25/12/2018,1266540,51.40 , NATIONAL EXPRESS LIMIT,TRAVEL FOR CONTACT,Peoples Services Directorate,C.C.A Travel & Subsistance,H212,
http://opendatacommunities.org/id/london-borough-council/sutton,London Borough of Sutton,28/11/2018,1266540,44.17 , NATIONAL EXPRESS LIMIT,53.00 - H301 0312 9999 - NATIONAL EXPRESS - COACH TICKET CONTACT.PNG,Peoples Services Directorate,Client Care/Assistance,H301,
http://opendatacommunities.org/id/london-borough-council/sutton,London Borough of Sutton,24/12/2018,1266540,278.50 , TRAVELODGE,ACCOMMODATION,Peoples Services Directorate,Payments Under the Child Care Act 1980,H210,
http://opendatacommunities.org/id/london-borough-council/sutton,London Borough of Sutton,27/11/2018,1266540,229.58 , TRAVELODGE,LONDON WIMBLEDON MORDEN TRAVELODGE,Peoples Services Directorate,C.C.A Rent & Utilities,H211,
http://opendatacommunities.org/id/london-borough-council/sutton,London Borough of Sutton,30/11/2018,1266540,323.25 , TRAVELODGE,323.25 - H212 0316 9999 - TRAVELODGE MORDEN.PNG,Peoples Services Directorate,C.C.A Travel & Subsistance,H212,
http://opendatacommunities.org/id/london-borough-council/sutton,London Borough of Sutton,28/11/2018,1266540,20.83 , WWW.FLOWERWORLD.CO,25.00 - F106 0320 9999 - MORRISONS - FLOWERS FOR FOSTER CARER .PNG,Peoples Services Directorate,Personal Requisites,F106,
http://opendatacommunities.org/id/london-borough-council/sutton,London Borough of Sutton,20/12/2018,1266540,30.00 , LBSUTTON,30.00 F106 CC 0321 BIRTH CERTS ADOPTION .PDF,Peoples Services Directorate,Personal Requisites,F106,
http://opendatacommunities.org/id/london-borough-council/sutton,London Borough of Sutton,22/12/2018,1266540,76.50 , HOLIDAY INN LEICESTER,76.50 H201 0321 9999.PDF HOLIDAY INN CLIENT ACCOMADATION,Peoples Services Directorate,Accommodation - Supported Living,H201,
http://opendatacommunities.org/id/london-borough-council/sutton,London Borough of Sutton,11/12/2018,1266540,28.00 , WM MORRISONS STORE,"MORRISONS RECEIPT 28 FOR CIN, CP AND OTHER GIFT FOR CHRISTMAS PRESENTS.PDF",Chief Executive's Directorate,Miscellaneous Costs,G499,
http://opendatacommunities.org/id/london-borough-council/sutton,London Borough of Sutton,04/12/2018,1266540,20.31 , WM MORRISONS STORE,BREAKFAST FOR LSCB EVENT,Chief Executive's Directorate,Provisions - General,F150,
http://opendatacommunities.org/id/london-borough-council/sutton,London Borough of Sutton,10/12/2018,1266540,52.89 , TESCO STORES 5999,52.89 - F106 0340 9999 - TESCO ORDER SFC.PNG,Peoples Services Directorate,Provisions - General,F150,
http://opendatacommunities.org/id/london-borough-council/sutton,London Borough of Sutton,11/12/2018,1266540,3.99 , AMAZON.CO.UK M08KQ1W04,213.26 - F106 0359 9999 - AMAZON ORDER -.PNG,Peoples Services Directorate,Travelling and Subsistence Allowances,A530,
http://opendatacommunities.org/id/london-borough-council/sutton,London Borough of Sutton,10/12/2018,1266540,98.33 , AMAZON.CO.UK M09K33IH4,AMAZON SPLIT PURCHASE,Peoples Services Directorate,Travelling and Subsistence Allowances,A530,
http://opendatacommunities.org/id/london-borough-council/sutton,London Borough of Sutton,09/12/2018,1266540,55.99 , AMAZON.CO.UK M01CR47M4,AMAZON SPLIT PURCHASE,Peoples Services Directorate,Provisions - General,F150,
http://opendatacommunities.org/id/london-borough-council/sutton,London Borough of Sutton,11/12/2018,1266540,11.20 , AMAZON.CO.UK M023O5R34,213.26 - F106 0359 9999 - AMAZON ORDER -.PNG TRANS SPLIT,Peoples Services Directorate,Provisions - General,F150,
http://opendatacommunities.org/id/london-borough-council/sutton,London Borough of Sutton,10/12/2018,1266540,54.06 , AMAZON.CO.UK M06XT6IK4,AMAZON SPLIT PURCHASE,Peoples Services Directorate,Provisions - General,F150,
http://opendatacommunities.org/id/london-borough-council/sutton,London Borough of Sutton,10/12/2018,1266540,11.58 , AMAZON.CO.UK M08Q10IF4,AMAZON SPLIT PURCHASE,Peoples Services Directorate,Provisions - General,F150,
http://opendatacommunities.org/id/london-borough-council/sutton,London Borough of Sutton,11/12/2018,1266540,34.29 , AMAZON.CO.UK M02GJ6YV4,213.26 - F106 0359 9999 - AMAZON ORDER -.PNG,Peoples Services Directorate,Provisions - General,F150,
http://opendatacommunities.org/id/london-borough-council/sutton,London Borough of Sutton,13/12/2018,1266540,608.30 , HIGHSTREET VOCUHERS,608 F106 CCEARLY HELP GIFT VOUCHERS .PDF,Peoples Services Directorate,Provisions - General,F150,
http://opendatacommunities.org/id/london-borough-council/sutton,London Borough of Sutton,18/12/2018,1266540,21.65 , WILKO RETAIL LIMIT,IFTS FOR THE CHILDREN IN CARESAINSBURYS - FOR INGREDIENTS FOR THE CICC MEMBERS TO MAKE GINGERBREAD MEN WITH FOSTER CARERS,Chief Executive's Directorate,LAC - Education,F269,
http://opendatacommunities.org/id/london-borough-council/sutton,London Borough of Sutton,17/12/2018,1266540,12.60 , SAINSBURYS SACAT 0764,INGREDIENTS FOR CHILDREN IN CARE COUNCIL CHRISTMAS COOKING SESSION,Chief Executive's Directorate,LAC - Education,F269,
http://opendatacommunities.org/id/london-borough-council/sutton,London Borough of Sutton,06/12/2018,1266540,15.80 , TESCO STORE 3235,"THIS AMOUNT WAS FOR REFRESHMENTS FOR THE SUTTON CHILDREN IN CARE COUNCIL MEETING, HELD AT THE CIVIC OFFICES.",Chief Executive's Directorate,LAC - Education,F269,
http://opendatacommunities.org/id/london-borough-council/sutton,London Borough of Sutton,28/11/2018,1266540,28.49 , AMZN MKTP UK M05DI7ZP4,28.49 - F106 0383 9999 - AMAZON ORDER.PNG,Peoples Services Directorate,Client Care/Assistance,H301,
http://opendatacommunities.org/id/london-borough-council/sutton,London Borough of Sutton,27/11/2018,1266540,13.88 , AMZN MKTP UK M02Q10FW4,13.88 - F106 0383 9999 - AMAZON.PNG,Peoples Services Directorate,Client Care/Assistance,H301,
http://opendatacommunities.org/id/london-borough-council/sutton,London Borough of Sutton,30/11/2018,1266540,77.08 , PREMIER INN 44536760,PREMIER INN BOOKING,Peoples Services Directorate,Travelling and Subsistence Allowances,A530,
http://opendatacommunities.org/id/london-borough-council/sutton,London Borough of Sutton,23/12/2018,1266540,20.00 , OYSTER AUTO-TOP UP,OYSTER TOP UP ON LINE,Peoples Services Directorate,Travelling and Subsistence Allowances,A530,
http://opendatacommunities.org/id/london-borough-council/sutton,London Borough of Sutton,23/12/2018,1266540,20.00 , OYSTER AUTO-TOP UP,OYSTER TOP UP ON LINE,Peoples Services Directorate,Travelling and Subsistence Allowances,A530,
http://opendatacommunities.org/id/london-borough-council/sutton,London Borough of Sutton,21/12/2018,1266540,216.50 , TRAVELODGE,216.50 H201 CC 0384 9999.PDF,Peoples Services Directorate,Accommodation - Supported Living,H201,
http://opendatacommunities.org/id/london-borough-council/sutton,London Borough of Sutton,20/12/2018,1266540,78.50 , TRAVELODGE,78.50 H201 CC 0384 9999.PDF,Peoples Services Directorate,Accommodation - Supported Living,H201,
http://opendatacommunities.org/id/london-borough-council/sutton,London Borough of Sutton,04/12/2018,1266540,25.00 , OYSTER ONLINE,OYSTERCARD TOP UP,"Environment, Housing & Regeneration Directorate",General Office Expenses,F235,
http://opendatacommunities.org/id/london-borough-council/sutton,London Borough of Sutton,30/11/2018,1266540,20.00 , OYSTER AUTO-TOP UP,OYSTERCARD TOP UP,"Environment, Housing & Regeneration Directorate",General Office Expenses,F235,
http://opendatacommunities.org/id/london-borough-council/sutton,London Borough of Sutton,20/12/2018,1266540,20.00 , OYSTER AUTO-TOP UP,OYSTERCARD TOP UP,"Environment, Housing & Regeneration Directorate",General Office Expenses,F235,
http://opendatacommunities.org/id/london-borough-council/sutton,London Borough of Sutton,10/12/2018,1266540,(45.00), WWW.ETCVENUES.CO.UK,REFUND FOR VAT,"Environment, Housing & Regeneration Directorate",Fees - Room Hire,F290,
http://opendatacommunities.org/id/london-borough-council/sutton,London Borough of Sutton,29/11/2018,1266540,592.00 , WWW.ILXGROUP.COM,TRAINING COURSE FEES,Chief Executive's Directorate,Training - Course Fees,A520,
http://opendatacommunities.org/id/london-borough-council/sutton,London Borough of Sutton,11/12/2018,1266540,18.32 , AMZN MKTP UK M06T92WF4,TILL ROLLS,Chief Executive's Directorate,Other Equipment - Purchase,F015,
http://opendatacommunities.org/id/london-borough-council/sutton,London Borough of Sutton,06/12/2018,1266540,65.45 , SAINSBURYS TO YOU 0038,WHITEHALL TEA ROOM SUPPLIES,Chief Executive's Directorate,Provisions - General,F150,
http://opendatacommunities.org/id/london-borough-council/sutton,London Borough of Sutton,29/11/2018,1266540,43.65 , SAINSBURYS TO YOU 0038,WHITEHALL TEA ROOM SUPPLIES,Chief Executive's Directorate,Provisions - General,F150,
http://opendatacommunities.org/id/london-borough-council/sutton,London Borough of Sutton,13/12/2018,1266540,41.40 , SAINSBURYS TO YOU 0038,WHITEHALL TEA ROOM SUPPLIES,Chief Executive's Directorate,Provisions - General,F150,
http://opendatacommunities.org/id/london-borough-council/sutton,London Borough of Sutton,05/12/2018,1266540,9.25 , GRO HM PASSPORT OFFICE,WORLD WAR ONE STEERING GROUP RESEARCH,Chief Executive's Directorate,Other Services,F340,
http://opendatacommunities.org/id/london-borough-council/sutton,London Borough of Sutton,17/12/2018,1266540,9.24 , ASDA STORES,CITIZENSHIP REFRESHMENTS,Resources Directorate,Offsite Storage,F231,
http://opendatacommunities.org/id/london-borough-council/sutton,London Borough of Sutton,18/12/2018,1266540,6.00 , TESCO STORE 3235,CITIZENSHIP REFRESHMENTS,Resources Directorate,General Office Expenses,F235,
http://opendatacommunities.org/id/london-borough-council/sutton,London Borough of Sutton,29/11/2018,1266540,11.25 , B & Q 1191,XMAS TREE LIGHTS,Resources Directorate,General Office Expenses,F235,
http://opendatacommunities.org/id/london-borough-council/sutton,London Borough of Sutton,29/11/2018,1266540,5.00 , HOMEBASE LTD 127,XMAS STAR,Resources Directorate,General Office Expenses,F235,
http://opendatacommunities.org/id/london-borough-council/sutton,London Borough of Sutton,07/12/2018,1266540,8.66 , AMAZON.CO.UK M04LO4SG4,ADAPTER FOR LECTERN INPUT,Resources Directorate,Purchase of IT Equipment,F380,
http://opendatacommunities.org/id/london-borough-council/sutton,London Borough of Sutton,03/12/2018,1266540,8.32 , SPOTIFY UK,MUSIC FOR WEDDINGS,Resources Directorate,Subscriptions - General,F450,
http://opendatacommunities.org/id/london-borough-council/sutton,London Borough of Sutton,07/12/2018,1266540,330.00 , ADVANCED ACCESS PL,ACCESS PLATFORM TRAINING,"Environment, Housing & Regeneration Directorate",Training - Course Fees,A520,
http://opendatacommunities.org/id/london-borough-council/sutton,London Borough of Sutton,06/12/2018,1266540,31.00 , WILKO RETAIL LIMIT,GLASSES FOR LC,"Environment, Housing & Regeneration Directorate",General Office Expenses,F235,
http://opendatacommunities.org/id/london-borough-council/sutton,London Borough of Sutton,18/12/2018,1266540,150.50 , TVLICENSING.CO.UK,TV LICENSE - LC,"Environment, Housing & Regeneration Directorate",Subscriptions - General,F450,
http://opendatacommunities.org/id/london-borough-council/sutton,London Borough of Sutton,23/12/2018,1266540,20.00 , OYSTER AUTO-TOP UP,OYSTER TOP UP,"Environment, Housing & Regeneration Directorate",General Office Expenses,F235,
http://opendatacommunities.org/id/london-borough-council/sutton,London Borough of Sutton,15/12/2018,1266540,20.00 , OYSTER AUTO-TOP UP,OYSTERCARD TOP UP,HRA,General Office Expenses,F235,
http://opendatacommunities.org/id/london-borough-council/sutton,London Borough of Sutton,09/12/2018,1266540,20.00 , OYSTER AUTO-TOP UP,OYSTERCARD TOP UP,HRA,General Office Expenses,F235,
http://opendatacommunities.org/id/london-borough-council/sutton,London Borough of Sutton,30/11/2018,1266540,20.00 , OYSTER AUTO-TOP UP,OYSTER CARD TOP UP,HRA,General Office Expenses,F235,
http://opendatacommunities.org/id/london-borough-council/sutton,London Borough of Sutton,01/12/2018,1266540,20.00 , OYSTER AUTO-TOP UP,OYSTER CARD TOP UP,HRA,General Office Expenses,F235,
http://opendatacommunities.org/id/london-borough-council/sutton,London Borough of Sutton,05/12/2018,1266540,20.00 , OYSTER AUTO-TOP UP,OYSTERCARD TOP UP,"Environment, Housing & Regeneration Directorate",General Office Expenses,F235,
http://opendatacommunities.org/id/london-borough-council/sutton,London Borough of Sutton,19/12/2018,1266540,25.00 , OYSTER ONLINE,OYSTER CARD TOP UP,"Environment, Housing & Regeneration Directorate",General Office Expenses,F235,
http://opendatacommunities.org/id/london-borough-council/sutton,London Borough of Sutton,28/11/2018,1266540,26.57 , TRAINLINE,TRAIN TICKET FOR SUTTON STAFF MEMBER TO VISIT BRIGHTON COUNCIL TO REVIEW THEIR SYSTEMS,Chief Executive's Directorate,Travelling and Subsistence Allowances,A530,
http://opendatacommunities.org/id/london-borough-council/sutton,London Borough of Sutton,07/12/2018,1266540,20.00 , OYSTER AUTO-TOP UP,TEAM OYSTER,Chief Executive's Directorate,Travelling and Subsistence Allowances,A530,
http://opendatacommunities.org/id/london-borough-council/sutton,London Borough of Sutton,02/12/2018,1266540,20.00 , OYSTER AUTO-TOP UP,TEAM OYSTER,Chief Executive's Directorate,Travelling and Subsistence Allowances,A530,
http://opendatacommunities.org/id/london-borough-council/sutton,London Borough of Sutton,11/12/2018,1266540,176.40 , COUGHLANS,REFRESHMENTS FOR THE STAFF MEETINGS AT CIVIC AND DENMARK ROAD FOR THE ANNUAL MEETINGS BETWEEN THE LEADER AND CHIEF EXECUTIVE WITH ALL COUNCIL STAFF,Chief Executive's Directorate,Refreshments,F155,
http://opendatacommunities.org/id/london-borough-council/sutton,London Borough of Sutton,11/12/2018,1266540,100.30 , TESCO STORE 3235,REFRESHMENTS FOR THE STAFF MEETINGS AT CIVIC AND DENMARK ROAD FOR THE ANNUAL MEETINGS BETWEEN THE LEADER AND CHIEF EXECUTIVE WITH ALL COUNCIL STAFF,Chief Executive's Directorate,Refreshments,F155,
http://opendatacommunities.org/id/london-borough-council/sutton,London Borough of Sutton,26/11/2018,1266540,100.00 , WWW.SOLACE.ORG.UK,MEMBERSHIP,Chief Executive's Directorate,Subscriptions - General,F450,
http://opendatacommunities.org/id/london-borough-council/sutton,London Borough of Sutton,17/12/2018,1266540,3.62 , MAILCHIMP    MONTHLY,WEB HOSTING,Chief Executive's Directorate,Fees - Computer Software,F384,
http://opendatacommunities.org/id/london-borough-council/sutton,London Borough of Sutton,14/12/2018,1266540,131.64 , MAILCHIMP    MONTHLY,WEB HOSTING,Chief Executive's Directorate,Fees - Computer Software,F384,
http://opendatacommunities.org/id/london-borough-council/sutton,London Borough of Sutton,16/12/2018,1266540,20.00 , OYSTER AUTO-TOP UP,OYSTER CARD TOP UP,Resources Directorate,Travelling and Subsistence Allowances,A530,
http://opendatacommunities.org/id/london-borough-council/sutton,London Borough of Sutton,01/12/2018,1266540,20.00 , OYSTER AUTO-TOP UP,OYSTER CARD TOP UP,Resources Directorate,Travelling and Subsistence Allowances,A530,
http://opendatacommunities.org/id/london-borough-council/sutton,London Borough of Sutton,29/11/2018,1266540,20.00 , OYSTER AUTO-TOP UP,OYSTER CARD TOP UP,Resources Directorate,Travelling and Subsistence Allowances,A530,
http://opendatacommunities.org/id/london-borough-council/sutton,London Borough of Sutton,14/12/2018,1266540,7.99 , AMAZON PRIME M25OE4ZK4,MONTHLY MEMBERSHIP,Resources Directorate,Provisions - General,F150,
http://opendatacommunities.org/id/london-borough-council/sutton,London Borough of Sutton,27/11/2018,1266540,125.00 , WM MORRISONS STORE,150 - H301 4114 9999 - MORRISONS VOUCHERS.PNG,Resources Directorate,Client Care/Assistance,H301,
http://opendatacommunities.org/id/london-borough-council/sutton,London Borough of Sutton,14/12/2018,1266540,"2,900.00 ", WWW.ICO.GOV.UK,PAYMENT TO INFORMATION COMMISSIONER'S OFFICE,Resources Directorate,Subscriptions - General,F450,
http://opendatacommunities.org/id/london-borough-council/sutton,London Borough of Sutton,27/11/2018,1266540,270.83 , ROTI MASTERS,CATERING FOR BAME STAFF NETWORK BLACK HISTORY MONTH EVENT - 26TH OCTOBER 2018,Resources Directorate,Travelling and Subsistence Allowances,A530,
http://opendatacommunities.org/id/london-borough-council/sutton,London Borough of Sutton,17/12/2018,1266540,6.00 , DAWSONS,ADDITIONAL KEY CUT FOR OPPOSITION GROUP ROOM,Resources Directorate,Materials - General,F100,
http://opendatacommunities.org/id/london-borough-council/sutton,London Borough of Sutton,26/11/2018,1266540,6.00 , DAWSONS,ADDITIONAL KEY FOR OPPOSITION GROUP ROOM,Resources Directorate,Materials - General,F100,
http://opendatacommunities.org/id/london-borough-council/sutton,London Borough of Sutton,15/12/2018,1266540,40.00 , OYSTER AUTO-TOP UP,OYSTER CARD TOP UP,Resources Directorate,Travelling and Subsistence Allowances,A530,
http://opendatacommunities.org/id/london-borough-council/sutton,London Borough of Sutton,09/12/2018,1266540,40.00 , OYSTER AUTO-TOP UP,OYSTER CARD TOP UP,Resources Directorate,Travelling and Subsistence Allowances,A530,
http://opendatacommunities.org/id/london-borough-council/sutton,London Borough of Sutton,30/11/2018,1266540,20.00 , OYSTER AUTO-TOP UP,OYSTER CARD TOP UP,Resources Directorate,Travelling and Subsistence Allowances,A530,
http://opendatacommunities.org/id/london-borough-council/sutton,London Borough of Sutton,02/12/2018,1266540,20.00 , OYSTER AUTO-TOP UP,OYSTER CARD TOP UP,Resources Directorate,Travelling and Subsistence Allowances,A530,
http://opendatacommunities.org/id/london-borough-council/sutton,London Borough of Sutton,29/11/2018,1266540,20.00 , OYSTER AUTO-TOP UP,OYSTER CARD TOP UP,Resources Directorate,Travelling and Subsistence Allowances,A530,
http://opendatacommunities.org/id/london-borough-council/sutton,London Borough of Sutton,31/10/2018,1266540,(15.00), WLY COMPLETESAVE.CO.UK,CREDIT - FRAUDULENT TRX,Resources Directorate,Subscriptions - General,F450,
http://opendatacommunities.org/id/london-borough-council/sutton,London Borough of Sutton,21/12/2018,1266540,40.00 , OYSTER AUTO-TOP UP,OYSTER TOP FOR BENEFITS STAFF TRAVEL,Resources Directorate,Travelling and Subsistence Allowances,A530,
http://opendatacommunities.org/id/london-borough-council/sutton,London Borough of Sutton,04/12/2018,1266540,239.99 , WWW.ARGOS.CO.UK,PURCHASE FOR CRISIS LOAN AND GRANT SCHEME,Resources Directorate,Grants,F473,
http://opendatacommunities.org/id/london-borough-council/sutton,London Borough of Sutton,04/12/2018,1266540,92.95 , WWW.ARGOS.CO.UK,PURCHASE FOR CRISIS LOAN AND GRANT SCHEME,Resources Directorate,Grants,F473,
http://opendatacommunities.org/id/london-borough-council/sutton,London Borough of Sutton,07/12/2018,1266540,454.98 , WWW.ARGOS.CO.UK,CRISIS LOANS & GRANTS,Resources Directorate,Grants,F473,
http://opendatacommunities.org/id/london-borough-council/sutton,London Borough of Sutton,21/12/2018,1266540,605.93 , WWW.ARGOS.CO.UK,"PURCHASE OF DOUBLE DIVAN, ELECTRIC COOKER AND FRIDGE FREEZER FOR CRISIS LOAN",Resources Directorate,Grants,F473,
http://opendatacommunities.org/id/london-borough-council/sutton,London Borough of Sutton,18/12/2018,1266540,289.98 , WWW.ARGOS.CO.UK,PURCHASE OF FRIDGE FREEZER AND ELECTRIC COOKER FOR CRISIS GRANT,Resources Directorate,Grants,F473,
http://opendatacommunities.org/id/london-borough-council/sutton,London Borough of Sutton,10/12/2018,1266540,189.99 , WWW.ARGOS.CO.UK,PURCHASE OF FRIDGE FREEZER FOR CRISIS GRANT,Resources Directorate,Grants,F473,
http://opendatacommunities.org/id/london-borough-council/sutton,London Borough of Sutton,04/12/2018,1266540,92.95 , WWW.ARGOS.CO.UK,PURCHASE OF DOUBLE MATTRESS FOR CRISIS GRANT,Resources Directorate,Grants,F473,
http://opendatacommunities.org/id/london-borough-council/sutton,London Borough of Sutton,04/12/2018,1266540,239.99 , WWW.ARGOS.CO.UK,PURCHASE OF ELECTRIC COOKER FOR CRISIS GRANT,Resources Directorate,Grants,F473,
http://opendatacommunities.org/id/london-borough-council/sutton,London Borough of Sutton,03/12/2018,1266540,40.00 , WWW.GOV.UK,PROBATE CERTIFICATES X 4,Resources Directorate,General Office Expenses,F235,
http://opendatacommunities.org/id/london-borough-council/sutton,London Borough of Sutton,28/11/2018,1266540,300.00 , WWW.GOV.UK,PROBATE CERTIFICATES X 30,Resources Directorate,General Office Expenses,F235,
http://opendatacommunities.org/id/london-borough-council/sutton,London Borough of Sutton,10/12/2018,1266540,40.00 , OYSTER AUTO-TOP UP,OYSTER TOP UP FOR BENEFITS STAFF TRAVEL,Resources Directorate,Conferences - Travel and Subsistence,A526,
http://opendatacommunities.org/id/london-borough-council/sutton,London Borough of Sutton,29/11/2018,1266540,40.00 , OYSTER AUTO-TOP UP,OYSTER TOP UP FOR BENEFITS STAFF TRAVEL,Resources Directorate,Travelling and Subsistence Allowances,A530,
http://opendatacommunities.org/id/london-borough-council/sutton,London Borough of Sutton,21/12/2018,1266540,4.00 , WWW.MIB.ORG.UK,VEHICLE INSURANCE SEARCH - CLAIM REF: N8ULR000002,Resources Directorate,Insurance Claims,F332,
http://opendatacommunities.org/id/london-borough-council/sutton,London Borough of Sutton,26/11/2018,1266540,9.25 , GRO HM PASSPORT OFFICE,BIRTH CERT GRO,Peoples Services Directorate,Personal Requisites,F106,
http://opendatacommunities.org/id/london-borough-council/sutton,London Borough of Sutton,23/11/2018,1266540,(22.00), SURREY CC CARD PAY,22.00 - F106 6405 9999 - SURREY REGISTER OFFICE REFUND.PDF,Peoples Services Directorate,Personal Requisites,F106,
http://opendatacommunities.org/id/london-borough-council/sutton,London Borough of Sutton,29/11/2018,1266540,395.00 , WWW.PMGLTD.CO.UK,TRAINING COURSE,Peoples Services Directorate,Training - Course Fees,A520,
